fUSD/lending_fUSD_20241102
["ID","MTS","AMOUNT","RATE_DAILY","PERIOD"]
[341171462,1730521833488,-500.0,0.00043996,9]
[341171463,1730521833498,-500.0,0.00043996,9]
[341171464,1730521833511,-500.0,0.00043996,9]
[341171465,1730521833521,-500.0,0.00043996,9]
[341171466,1730521833530,-500.0,0.00043996,9]
[341171467,1730521833539,-500.0,0.00043996,9]
[341171468,1730521833549,-545.38791574,0.00043996,9]
[341171469,1730521833559,-500.0,0.00043996,9]
[341171470,1730521833569,-500.0,0.00043996,9]
[341171471,1730521833578,-500.0,0.00043996,9]
[341171472,1730521833589,-500.0,0.00043996,9]
[341171473,1730521833605,-500.0,0.00043996,9]
[341171474,1730521833615,-500.0,0.00043996,9]
[341171475,1730521833624,-500.0,0.00043996,9]
[341171476,1730521833634,-500.0,0.00043996,9]
[341171477,1730521833643,-519.56978664,0.00043996,9]
[341171478,1730521833652,-550.18312992,0.00043996,9]
[341171479,1730521833662,-500.0,0.00043996,9]
[341171480,1730521833673,-500.0,0.00043996,9]
[341171481,1730521833682,-500.0,0.00043996,9]
[341171482,1730521833692,-500.0,0.00043996,9]
[341171483,1730521833702,-518.5475211,0.00043996,9]
[341171484,1730521833712,-500.0,0.00043996,9]
[341171485,1730521833721,-523.50874419,0.00043996,9]
[341171486,1730521833730,-500.0,0.00043996,9]
[341171487,1730521833739,-528.8225036,0.00043996,9]
[341171488,1730521833749,-500.0,0.00043996,9]
[341171489,1730521833759,-500.0,0.00043996,9]
[341171490,1730521833769,-252.50615667,0.00043996,9]
[341171491,1730521833779,-532.07116469,0.00043996,9]
[341171492,1730521833789,-500.0,0.00043996,9]
[341171493,1730521833798,-500.0,0.00043996,9]
[341171494,1730521833808,-500.0,0.00043996,9]
[341171495,1730521833817,-500.0,0.00043996,9]
[341171496,1730521833827,-522.63780587,0.00043996,9]
[341171497,1730521833836,-500.0,0.00043996,9]
[341171498,1730521833847,-500.0,0.00043996,9]
[341171499,1730521833856,-519.02249831,0.00043996,9]
[341171500,1730521833866,-516.52173963,0.00043996,9]
[341171501,1730521833875,-535.64026169,0.00043996,9]
[341171502,1730521833884,-403.07498202,0.00043996,9]
[341171503,1730521833894,-554.58346005,0.00043996,9]
[341171504,1730521833903,-500.0,0.00043996,9]
[341171505,1730521833913,-500.0,0.00043996,9]
[341171506,1730521833922,-308.63254933,0.00043996,9]
[341171507,1730521833932,-500.0,0.00043996,9]
[341171508,1730521833942,-522.9790167,0.00043996,9]
[341171509,1730521833952,-500.0,0.00043996,9]
[341171510,1730521833961,-500.0,0.00043996,9]
[341171511,1730521833971,-535.72531814,0.00043996,9]
[341171512,1730521833980,-500.0,0.00043996,9]
[341171513,1730521833990,-500.0,0.00043996,9]
[341171514,1730521833999,-526.57752486,0.00043996,9]
[341171515,1730521834009,-508.77128884,0.00043996,9]
[341171516,1730521834018,-506.36525477,0.00043996,9]
[341171517,1730521834028,-500.0,0.00043996,9]
[341171518,1730521834038,-500.0,0.00043996,9]
[341171519,1730521834047,-568.51483393,0.00043996,9]
[341171520,1730521834057,-500.0,0.00043996,9]
[341171521,1730521834066,-500.0,0.00043996,9]
[341171522,1730521834076,-500.0,0.00043996,9]
[341171523,1730521834085,-500.0,0.00043996,9]
[341171524,1730521834096,-500.0,0.00043996,9]
[341171525,1730521834195,-151.0,0.00043996,7]
[341171526,1730521834204,-151.0,0.00043996,7]
[341171527,1730521834214,-500.0,0.00043996,9]
[341171528,1730521834223,-500.0,0.00043996,9]
[341171529,1730521834233,-500.0,0.00043996,7]
[341171530,1730521834242,-500.0,0.00043996,7]
[341171531,1730521834252,-500.0,0.00043996,9]
[341171532,1730521834261,-500.0,0.00043996,9]
[341171533,1730521834271,-151.0,0.00043996,14]
[341171534,1730521834280,-151.0,0.00043996,14]
[341171535,1730521834289,-514.28696783,0.00043996,9]
[341171536,1730521834298,-500.0,0.00043996,9]
[341171537,1730521834309,-500.0,0.00043996,9]
[341171538,1730521834319,-469.28680137,0.00043996,9]
[341171539,1730521834328,-568.7031873,0.00043996,9]
[341171540,1730521834338,-500.0,0.00043996,9]
[341171541,1730521834349,-500.0,0.00043996,9]
[341171542,1730521834359,-544.62492404,0.00043996,9]
[341171543,1730521834368,-152.33145,0.00043996,14]
[341171544,1730521834377,-205.02647974,0.00043996,9]
[341171545,1730521834387,-160.27695,0.00043996,14]
[341171546,1730521834397,-500.0,0.00043996,9]
[341171547,1730521834406,-500.0,0.00043996,9]
[341171548,1730521834415,-152.825335,0.00043996,14]
[341171549,1730521834425,-500.0,0.00043996,9]
[341171550,1730521834434,-500.0,0.00043996,9]
[341171551,1730521834444,-168.735636,0.00043996,14]
[341171552,1730521834453,-533.99402772,0.00043996,9]
[341171553,1730521834463,-151.0,0.00043996,14]
[341171554,1730521834472,-151.0,0.00043996,14]
[341171555,1730521834483,-583.56684091,0.00043996,9]
[341171556,1730521834492,-151.0,0.00043996,14]
[341171557,1730521834502,-151.0,0.00043996,14]
[341171558,1730521834511,-521.87182327,0.00043996,9]
[341171559,1730521834520,-579.66835457,0.00043996,9]
[341171560,1730521834530,-526.46437044,0.00043996,9]
[341171561,1730521834539,-500.0,0.00043996,9]
[341171562,1730521834549,-500.0,0.00043996,9]
[341171563,1730521834558,-151.0,0.00043996,14]
[341171564,1730521834568,-199.467858,0.00043996,14]
[341171565,1730521834577,-524.92582069,0.00043996,9]
[341171566,1730521834587,-159.390604,0.00043996,14]
[341171567,1730521834596,-155.893695,0.00043996,14]
[341171568,1730521834606,-500.0,0.00043996,9]
[341171569,1730521834616,-500.0,0.00043996,9]
[341171570,1730521834625,-500.0,0.00043996,9]
[341171571,1730521834634,-476.54738653,0.00043996,9]
[341171572,1730521834644,-550.87259004,0.00043996,9]
[341171573,1730521834653,-523.35948482,0.00043996,9]
[341171574,1730521834663,-159.76581,0.00043996,3]
[341171575,1730521834672,-152.219824,0.00043996,14]
[341171576,1730521834682,-176.641476,0.00043996,14]
[341171577,1730521834692,-271.595949,0.00043996,14]
[341171578,1730521834701,-271.595949,0.00043996,14]
[341171579,1730521834710,-271.595949,0.00043996,14]
[341171580,1730521834720,-271.595949,0.00043996,14]
[341171581,1730521834730,-168.973836,0.00043996,14]
[341171582,1730521834739,-274.392867,0.00043996,14]
[341171583,1730521834748,-274.392867,0.00043996,14]
[341171584,1730521834758,-274.392867,0.00043996,14]
[341171585,1730521834767,-274.392867,0.00043996,14]
[341171586,1730521834777,-151.0,0.00043996,14]
[341171587,1730521834786,-151.0,0.00043996,14]
[341171588,1730521834795,-317.128037,0.00043996,14]
[341171589,1730521834805,-152.30033,0.00043996,14]
[341171590,1730521834815,-151.0,0.00043996,14]
[341171591,1730521834824,-151.0,0.00043996,14]
[341171592,1730521834833,-151.0,0.00043996,14]
[341171593,1730521834843,-151.0,0.00043996,14]
[341171594,1730521834853,-178.428527,0.00043996,14]
[341171595,1730521834863,-168.197776,0.00043996,14]
[341171596,1730521834874,-158.727636,0.00043996,14]
[341171597,1730521834885,-155.467862,0.00043996,14]
[341171598,1730521834896,-151.0,0.00043996,14]
[341171599,1730521834906,-155.840938,0.00043996,14]
[341171600,1730521834917,-152.870936,0.00043996,7]
[341171601,1730521834927,-225.258571,0.00043996,14]
[341171602,1730521834936,-151.0,0.00043996,14]
[341171603,1730521834946,-200.9021,0.00043996,14]
[341171604,1730521834955,-530.3422723,0.00043997,9]
[341171605,1730521834965,-500.0,0.00043997,2]
[341171606,1730521834975,-548.57128259,0.00043997,2]
[341171607,1730521834985,-500.0,0.00043997,9]
[341171608,1730521834996,-500.0,0.00043997,9]
[341171609,1730521835006,-517.86726709,0.00043997,9]
[341171610,1730521835016,-500.0,0.00043997,9]
[341171611,1730521835025,-501.93769212,0.00043997,2]
[341171612,1730521835035,-500.0,0.00043997,9]
[341171613,1730521835046,-500.0,0.00043997,9]
[341171614,1730521835055,-471.99284392,0.00043997,9]
[341171615,1730521835066,-500.0,0.00043997,9]
[341171616,1730521835076,-521.05880442,0.00043997,9]
[341171617,1730521835086,-500.0,0.00043997,9]
[341171618,1730521835096,-497.56552909,0.00043997,9]
[341171619,1730521835105,-531.7623947,0.00043997,9]
[341171620,1730521835115,-200.0,0.00043997,7]
[341171621,1730521835126,-202.54415755,0.00043997,7]
[341171622,1730521835136,-549.62713944,0.00043997,9]
[341171623,1730521835148,-500.0,0.00043997,9]
[341171624,1730521835158,-523.445347,0.00043997,9]
[341171625,1730521835168,-508.79622848,0.00043997,9]
[341171626,1730521835178,-527.12799246,0.00043997,9]
[341171627,1730521835187,-512.2808577,0.00043997,9]
[341171628,1730521835196,-515.06241714,0.00043997,9]
[341171629,1730521835208,-521.54697673,0.00043997,9]
[341171630,1730521835222,-516.66244505,0.00043997,9]
[341171631,1730521835236,-526.31879542,0.00043997,9]
[341171632,1730521835249,-500.0,0.00043997,9]
[341171633,1730521835263,-504.16498813,0.00043997,9]
[341171634,1730521835274,-527.35109647,0.00043997,9]
[341171635,1730521835286,-500.0,0.00043997,9]
[341171636,1730521835299,-515.77461077,0.00043997,9]
[341171637,1730521835314,-493.65354089,0.00043997,9]
[341171638,1730521835327,-508.93631356,0.00043997,9]
[341171639,1730521835341,-499.76215438,0.00043997,9]
[341171640,1730521835356,-500.0,0.00043997,2]
[341171641,1730521835370,-500.0,0.00043997,2]
[341171642,1730521835385,-303.72172913,0.00043997,9]
[341171643,1730521835398,-500.0,0.00043997,9]
[341171644,1730521835412,-440.03039126,0.00043997,9]
[341171645,1730521835424,-499.8687554,0.00043997,9]
[341171646,1730521835436,-502.39095079,0.00043997,9]
[341171647,1730521835449,-540.04591126,0.00043997,9]
[341171648,1730521835462,-500.0,0.00043997,9]
[341171649,1730521835476,-500.0,0.00043997,9]
[341171650,1730521835489,-500.0,0.00043997,9]
[341171651,1730521835501,-244.00768069,0.00043997,9]
[341171652,1730521835513,-178.692222,0.00043997,14]
[341171653,1730521835524,-151.0,0.00043997,14]
[341171654,1730521835534,-500.0,0.00043997,9]
[341171655,1730521835545,-500.0,0.00043997,9]
[341171656,1730521835558,-151.0,0.00043997,14]
[341171657,1730521835569,-156.890048,0.00043997,14]
[341171658,1730521835582,-158.382674,0.00043997,14]
[341171659,1730521835595,-508.57885569,0.00043997,9]
[341171660,1730521835607,-500.0,0.00043997,7]
[341171661,1730521835619,-500.0,0.00043997,7]
[341171662,1730521835632,-527.12430897,0.00043997,9]
[341171663,1730521835644,-158.10287,0.00043997,7]
[341171664,1730521835657,-553.78453528,0.00043997,9]
[341171665,1730521835668,-500.0,0.00043997,9]
[341171666,1730521835679,-159.8926287,0.00043997,9]
[341171667,1730521835689,-500.0,0.00043997,9]
[341171668,1730521835699,-500.0,0.00043997,9]
[341171669,1730521835710,-523.4420897,0.00043997,9]
[341171670,1730521835721,-151.0,0.00043997,14]
[341171671,1730521835733,-317.2545305,0.00043997,9]
[341171672,1730521835747,-520.36118776,0.00043997,9]
[341171673,1730521835759,-500.0,0.00043997,2]
[341171674,1730521835769,-500.0,0.00043997,2]
[341171675,1730521835780,-389.90645933,0.00043997,9]
[341171676,1730521835792,-151.0,0.00043997,14]
[341171677,1730521835803,-500.0,0.00043997,9]
[341171678,1730521835815,-500.0,0.00043997,9]
[341171679,1730521835826,-153.154151,0.00043997,14]
[341171680,1730521835837,-500.0,0.00043997,9]
[341171681,1730521835849,-508.68717007,0.00043997,9]
[341171682,1730521835859,-552.98354187,0.00043997,9]
[341171683,1730521835870,-500.0,0.00043997,9]
[341171684,1730521835881,-500.0,0.00043997,9]
[341171685,1730521835892,-246.95569305,0.00043997,9]
[341171686,1730521835903,-263.44920968,0.00043997,9]
[341171687,1730521835913,-205.18254107,0.00043997,9]
[341171688,1730521835924,-500.0,0.00043997,9]
[341171689,1730521835936,-500.0,0.00043997,9]
[341171690,1730521835948,-500.0,0.00043997,9]
[341171691,1730521835961,-500.0,0.00043997,9]
[341171692,1730521835971,-504.58918037,0.00043997,9]
[341171693,1730521835982,-500.0,0.00043997,9]
[341171694,1730521835992,-500.0,0.00043997,9]
[341171695,1730521836003,-271.595949,0.00043997,14]
[341171696,1730521836013,-271.595949,0.00043997,14]
[341171697,1730521836025,-518.63,0.00043997,9]
[341171698,1730521836036,-518.63,0.00043997,9]
[341171699,1730521836048,-271.595949,0.00043997,14]
[341171700,1730521836059,-271.595949,0.00043997,14]
[341171701,1730521836070,-500.0,0.00043997,9]
[341171702,1730521836081,-527.09965922,0.00043997,9]
[341171703,1730521836092,-274.392867,0.00043997,14]
[341171704,1730521836104,-274.392867,0.00043997,14]
[341171705,1730521836115,-300.0,0.00043997,9]
[341171706,1730521836126,-316.48248145,0.00043997,9]
[341171707,1730521836139,-274.392867,0.00043997,14]
[341171708,1730521836150,-274.392867,0.00043997,14]
[341171709,1730521836162,-151.0,0.00043997,14]
[341171710,1730521836174,-151.0,0.00043997,14]
[341171711,1730521836186,-541.69071744,0.00043997,9]
[341171712,1730521836197,-151.0,0.00043997,14]
[341171713,1730521836207,-500.0,0.00043997,9]
[341171714,1730521836218,-500.0,0.00043997,9]
[341171715,1730521836231,-500.0,0.00043997,9]
[341171716,1730521836242,-500.0,0.00043997,9]
[341171717,1730521836254,-375.53119142,0.00043997,9]
[341171718,1730521836265,-500.0,0.00043997,9]
[341171719,1730521836276,-500.0,0.00043997,9]
[341171720,1730521836286,-500.0,0.00043997,9]
[341171721,1730521836297,-500.0,0.00043998,9]
[341171722,1730521836308,-500.0,0.00043998,9]
[341171723,1730521836320,-500.0,0.00043998,9]
[341171724,1730521836331,-500.0,0.00043998,2]
[341171725,1730521836342,-224.051724,0.00043998,7]
[341171726,1730521836355,-501.95796552,0.00043998,9]
[341171727,1730521836366,-500.0,0.00043998,9]
[341171728,1730521836378,-500.0,0.00043998,9]
[341171729,1730521836390,-500.0,0.00043998,9]
[341171730,1730521836402,-649.58654552,0.00043998,9]
[341171731,1730521836532,-151.0,0.00043998,14]
[341171732,1730521836545,-500.0,0.00043998,9]
[341171733,1730521836554,-500.0,0.00043998,9]
[341171734,1730521836564,-20000.0,0.00043998,2]
[341171735,1730521836574,-387.83455723,0.00043998,9]
[341171736,1730521836584,-544.21760584,0.00043998,9]
[341171737,1730521836595,-543.16817584,0.00043998,9]
[341171738,1730521836606,-307.10928892,0.00043998,9]
[341171739,1730521836615,-571.13106278,0.00043998,9]
[341171740,1730521836624,-471.07626994,0.00043998,9]
[341171741,1730521836634,-151.0,0.00043998,14]
[341171742,1730521836643,-157.019904,0.00043998,14]
[341171743,1730521836652,-587.762549,0.00043998,9]
[341171744,1730521836662,-500.0,0.00043998,9]
[341171745,1730521836672,-290.79529203,0.00043998,9]
[341171746,1730521836682,-500.0,0.00043998,9]
[341171747,1730521836691,-500.0,0.00043998,9]
[341171748,1730521836700,-641.64509337,0.00043998,9]
[341171749,1730521836710,-500.0,0.00043998,9]
[341171750,1730521836719,-500.0,0.00043998,9]
[341171751,1730521836729,-500.0,0.00043998,9]
[341171752,1730521836738,-544.35183836,0.00043998,9]
[341171753,1730521836748,-150.0,0.00043998,9]
[341171754,1730521836757,-500.0,0.00043998,9]
[341171755,1730521836766,-500.0,0.00043998,9]
[341171756,1730521836775,-500.0,0.00043998,9]
[341171757,1730521836784,-500.0,0.00043998,9]
[341171758,1730521836793,-500.0,0.00043998,9]
[341171759,1730521836803,-500.0,0.00043998,9]
[341171760,1730521836812,-500.0,0.00043998,9]
[341171761,1730521836822,-500.0,0.00043998,9]
[341171762,1730521836831,-500.0,0.00043998,9]
[341171763,1730521836840,-500.0,0.00043998,9]
[341171764,1730521836852,-500.0,0.00043998,9]
[341171765,1730521836861,-500.0,0.00043998,9]
[341171766,1730521836871,-356.25543705,0.00043998,9]
[341171767,1730521836880,-500.0,0.00043998,9]
[341171768,1730521836890,-500.0,0.00043998,9]
[341171769,1730521836899,-545.63224223,0.00043998,9]
[341171770,1730521836908,-500.0,0.00043998,9]
[341171771,1730521836917,-500.0,0.00043998,9]
[341171772,1730521836926,-533.36458504,0.00043998,9]
[341171773,1730521836936,-500.0,0.00043998,9]
[341171774,1730521836945,-500.0,0.00043998,9]
[341171775,1730521836955,-500.0,0.00043998,7]
[341171776,1730521836964,-500.0,0.00043998,9]
[341171777,1730521836973,-500.0,0.00043998,7]
[341171778,1730521836982,-500.0,0.00043998,9]
[341171779,1730521836991,-500.0,0.00043998,9]
[341171780,1730521837000,-500.0,0.00043998,9]
[341171781,1730521837009,-500.0,0.00043998,2]
[341171782,1730521837018,-500.0,0.00043998,9]
[341171783,1730521837026,-500.0,0.00043998,9]
[341171784,1730521837035,-151.0,0.00043998,14]
[341171785,1730521837044,-151.0,0.00043998,14]
[341171786,1730521837053,-419.34497835,0.00043998,9]
[341171787,1730521837062,-542.15169646,0.00043998,9]
[341171788,1730521837071,-500.0,0.00043998,9]
[341171789,1730521837081,-423.46435026,0.00043998,9]
[341171790,1730521837090,-271.595949,0.00043998,14]
[341171791,1730521837099,-518.63,0.00043998,9]
[341171792,1730521837108,-271.595949,0.00043998,14]
[341171793,1730521837117,-500.0,0.00043998,9]
[341171794,1730521837127,-274.392867,0.00043998,14]
[341171795,1730521837136,-274.392867,0.00043998,14]
[341171796,1730521837145,-151.0,0.00043998,14]
[341171797,1730521837154,-151.0,0.00043998,14]
[341171798,1730521837163,-500.0,0.00043998,9]
[341171799,1730521837172,-697.18,0.00043998,9]
[341171800,1730521837182,-500.0,0.00043998,9]
[341171801,1730521837192,-500.0,0.00043998,9]
[341171802,1730521837202,-500.0,0.00043998,9]
[341171803,1730521837212,-1000.0,0.00043998,13]
[341171804,1730521837222,-345.0,0.00043998,13]
[341171805,1730521837232,-500.0,0.00043999,9]
[341171806,1730521837241,-500.0,0.00043999,9]
[341171807,1730521837251,-556.69109129,0.00043999,9]
[341171808,1730521837262,-510.43688546,0.00043999,9]
[341171809,1730521837272,-500.0,0.00043999,9]
[341171810,1730521837282,-500.0,0.00043999,9]
[341171812,1730521837292,-500.0,0.00043999,9]
[341171813,1730521837302,-314.58479576,0.00043999,9]
[341171814,1730521837316,-501.82530703,0.00043999,9]
[341171815,1730521837326,-500.36287127,0.00043999,9]
[341171816,1730521837335,-501.00477338,0.00043999,9]
[341171817,1730521837345,-500.0,0.00043999,9]
[341171818,1730521837355,-500.0,0.00043999,9]
[341171819,1730521837364,-500.0,0.00043999,9]
[341171820,1730521837373,-500.0,0.00043999,9]
[341171821,1730521837383,-500.0,0.00043999,9]
[341171822,1730521837393,-209.58847122,0.00043999,9]
[341171823,1730521837403,-500.0,0.00043999,9]
[341171824,1730521837414,-527.47151052,0.00043999,9]
[341171825,1730521837423,-500.0,0.00043999,2]
[341171826,1730521837433,-500.0,0.00043999,2]
[341171827,1730521837443,-500.0,0.00043999,2]
[341171828,1730521837452,-500.0,0.00043999,2]
[341171829,1730521837461,-500.0,0.00043999,9]
[341171830,1730521837470,-500.0,0.00043999,9]
[341171831,1730521837479,-500.0,0.00043999,9]
[341171832,1730521837488,-500.0,0.00043999,9]
[341171833,1730521837497,-500.0,0.00043999,9]
[341171834,1730521837506,-500.0,0.00043999,9]
[341171835,1730521837515,-500.0,0.00043999,9]
[341171836,1730521837524,-210.06678948,0.00043999,9]
[341171837,1730521837534,-833.81608747,0.00043999,120]
[341171838,1730521837543,-500.0,0.00043999,9]
[341171839,1730521837552,-500.0,0.00043999,9]
[341171840,1730521837561,-629.04286499,0.00043999,9]
[341171841,1730521837569,-16210.55454541,0.00043999,2]
[341171842,1730521837578,-500.0,0.00043999,9]
[341171843,1730521837587,-500.0,0.00043999,9]
[341171844,1730521837597,-500.0,0.00043999,9]
[341171845,1730521837607,-614.36921822,0.00043999,9]
[341171846,1730521837616,-264.77227775,0.00043999,9]
[341171847,1730521837625,-150.0,0.00043999,9]
[341171848,1730521837634,-172.21806089,0.00043999,9]
[341171849,1730521837643,-500.0,0.00043999,9]
[341171850,1730521837652,-500.0,0.00043999,9]
[341171851,1730521837661,-534.48700528,0.00043999,9]
[341171852,1730521837670,-500.0,0.00043999,9]
[341171853,1730521837679,-500.0,0.00043999,9]
[341171854,1730521837688,-500.0,0.00043999,9]
[341171855,1730521837697,-500.0,0.00043999,9]
[341171856,1730521837707,-510.72466196,0.00043999,9]
[341171857,1730521837716,-500.0,0.00043999,9]
[341171858,1730521837725,-500.0,0.00043999,9]
[341171859,1730521837735,-500.0,0.00043999,9]
[341171860,1730521837744,-500.0,0.00043999,9]
[341171861,1730521837753,-500.0,0.00043999,9]
[341171862,1730521837762,-500.0,0.00043999,9]
[341171863,1730521837771,-500.0,0.00043999,9]
[341171864,1730521837781,-500.0,0.00043999,9]
[341171865,1730521837790,-500.0,0.00043999,9]
[341171866,1730521837799,-500.0,0.00043999,9]
[341171867,1730521837809,-500.0,0.00043999,9]
[341171868,1730521837818,-539.63046184,0.00043999,9]
[341171869,1730521837828,-500.0,0.00043999,9]
[341171870,1730521837837,-500.0,0.00043999,9]
[341171871,1730521837846,-544.47093614,0.00043999,9]
[341171872,1730521837855,-226.79524,0.00043999,9]
[341171873,1730521837864,-500.0,0.00043999,9]
[341171874,1730521837873,-500.0,0.00043999,9]
[341171875,1730521837882,-562.50558565,0.00043999,9]
[341171876,1730521837892,-500.0,0.00043999,9]
[341171877,1730521837901,-527.79600019,0.00043999,9]
[341171878,1730521837911,-500.0,0.00043999,9]
[341171879,1730521837920,-500.0,0.00043999,9]
[341171880,1730521837930,-500.0,0.00043999,9]
[341171881,1730521837940,-332.35429297,0.00043999,9]
[341171882,1730521837949,-500.0,0.00043999,9]
[341171883,1730521837958,-519.88271602,0.00043999,9]
[341171884,1730521837967,-500.0,0.00043999,9]
[341171885,1730521837976,-500.0,0.00043999,9]
[341171886,1730521837985,-500.0,0.00043999,9]
[341171887,1730521837994,-500.0,0.00043999,9]
[341171888,1730521838006,-500.0,0.00043999,9]
[341171889,1730521838016,-500.0,0.00043999,9]
[341171890,1730521838025,-500.0,0.00043999,9]
[341171891,1730521838035,-500.0,0.00043999,9]
[341171892,1730521838044,-500.0,0.00043999,9]
[341171893,1730521838054,-500.0,0.00043999,9]
[341171894,1730521838063,-242.00672847,0.00043999,9]
[341171895,1730521838072,-241.3133494,0.00043999,9]
[341171896,1730521838082,-500.0,0.00043999,9]
[341171897,1730521838091,-236.92487749,0.00043999,9]
[341171898,1730521838101,-500.0,0.00043999,9]
[341171899,1730521838111,-500.0,0.00043999,9]
[341171900,1730521838120,-500.0,0.00043999,9]
[341171901,1730521838129,-500.0,0.00043999,9]
[341171902,1730521838139,-500.0,0.00043999,9]
[341171903,1730521838148,-500.0,0.00043999,9]
[341171904,1730521838158,-500.0,0.00043999,9]
[341171905,1730521838167,-517.6695932,0.00043999,9]
[341171906,1730521838176,-500.0,0.00043999,2]
[341171907,1730521838186,-500.0,0.00043999,7]
[341171908,1730521838195,-500.0,0.00043999,7]
[341171909,1730521838204,-2068.73564168,0.00043999,120]
[341171910,1730521838214,-500.0,0.00043999,7]
[341171911,1730521838223,-402.92399733,0.00043999,7]
[341171912,1730521838232,-500.0,0.00043999,9]
[341171913,1730521838241,-500.0,0.00043999,9]
[341171914,1730521838250,-558.84216334,0.00043999,9]
[341171915,1730521838259,-500.0,0.00043999,7]
[341171916,1730521838268,-500.0,0.00043999,7]
[341171917,1730521838278,-500.0,0.00043999,7]
[341171918,1730521838287,-500.0,0.00043999,7]
[341171919,1730521838297,-500.0,0.00043999,7]
[341171920,1730521838308,-500.0,0.00043999,9]
[341171921,1730521838318,-500.0,0.00043999,9]
[341171922,1730521838328,-500.0,0.00043999,9]
[341171923,1730521838337,-500.0,0.00043999,9]
[341171924,1730521838346,-500.0,0.00043999,9]
[341171925,1730521838357,-500.0,0.00043999,9]
[341171926,1730521838366,-248.13919895,0.00043999,9]
[341171927,1730521838375,-500.0,0.00043999,9]
[341171928,1730521838387,-500.0,0.00043999,9]
[341171929,1730521838396,-500.0,0.00043999,9]
[341171930,1730521838406,-500.0,0.00043999,9]
[341171931,1730521838415,-500.0,0.00043999,9]
[341171932,1730521838424,-500.0,0.00043999,2]
[341171933,1730521838434,-500.0,0.00043999,2]
[341171934,1730521838443,-500.0,0.00043999,2]
[341171935,1730521838453,-500.0,0.00043999,2]
[341171936,1730521838463,-447.1281677,0.00043999,9]
[341171937,1730521838473,-500.0,0.00043999,9]
[341171938,1730521838483,-315.79842147,0.00043999,9]
[341171939,1730521838493,-151.0,0.00043999,14]
[341171940,1730521838502,-151.0,0.00043999,14]
[341171941,1730521838512,-151.0,0.00043999,14]
[341171942,1730521838522,-151.0,0.00043999,14]
[341171943,1730521838531,-500.0,0.00043999,9]
[341171944,1730521838541,-549.49058069,0.00043999,9]
[341171945,1730521838551,-500.0,0.00043999,9]
[341171946,1730521838561,-500.0,0.00043999,9]
[341171947,1730521838571,-268.33541034,0.00043999,9]
[341171948,1730521838581,-500.0,0.00043999,9]
[341171949,1730521838592,-644.62481874,0.00043999,9]
[341171950,1730521838603,-500.0,0.00043999,9]
[341171951,1730521838614,-500.0,0.00043999,9]
[341171952,1730521838623,-500.0,0.00043999,9]
[341171953,1730521838633,-500.0,0.00043999,9]
[341171954,1730521838643,-500.0,0.00043999,9]
[341171955,1730521838654,-1056.12,0.00043999,120]
[341171956,1730521838664,-271.595949,0.00043999,14]
[341171957,1730521838674,-271.595949,0.00043999,14]
[341171958,1730521838683,-271.595949,0.00043999,14]
[341171959,1730521838693,-271.595949,0.00043999,14]
[341171960,1730521838703,-518.63,0.00043999,9]
[341171961,1730521838712,-518.63,0.00043999,9]
[341171962,1730521838722,-518.63,0.00043999,9]